bitfinex/quotes_ETHUSD_20220119
["timestamp","ask_amount","ask_price","bid_price","bid_amount"]
[1642603455348,1.5881078,3149.3,3147.9,11.27229435]
[1642603455549,1.1466,3150.5,3148.2,0.01255163]
[1642603455748,0.00513689,3148.9,3148.3,0.73115604]
[1642603455945,0.00513689,3148.9,3148.4,3.1028]
[1642603456145,0.00456846,3148.8,3148.5,0.458]
[1642603456348,0.00456846,3148.8,3148.6,4.9284]
[1642603456549,0.00456846,3148.8,3148.5,0.458]
[1642603456550,4.70400004,3148.7,3148.2,0.458]
[1642603456748,4.70400004,3148.7,3148.1,0.127]
[1642603456944,0.00343162,3148.6,3148.1,0.127]
[1642603457345,0.3,3148.7,3148.1,0.127]
[1642603457346,0.00286319,3148.5,3148.1,0.127]
[1642603457547,0.00286319,3148.5,3148.1,1.54707499]
[1642603457744,0.79653177,3148.4,3148.1,1.54707499]
[1642603457997,0.79653177,3148.4,3148.1,0.127]
[1642603457998,0.3,3148.3,3148.1,0.127]
[1642603458193,0.3,3148.3,3148.0,1.39980876]
[1642603458194,0.30172635,3148.3,3148.0,1.39980876]
[1642603458393,0.00115792,3148.2,3147.7,0.61689]
[1642603458795,0.00115792,3148.2,3147.8,0.00111577]
[1642603459098,0.00115792,3148.2,3148.1,7.13495852]
[1642603459493,0.00115792,3148.2,3148.1,6.258]
[1642603459694,0.00115792,3148.2,3148.1,6.41689]
[1642603460095,0.00115792,3148.2,3148.1,7.89045021]
[1642603460996,0.00115792,3148.2,3148.1,7.73156021]
[1642603461197,0.00115792,3148.2,3148.1,0.458]
[1642603461637,0.00115792,3148.2,3148.1,3.358]
[1642603461842,0.00115792,3148.2,3148.1,0.458]
[1642603462047,0.00115792,3148.2,3147.8,0.00111577]
[1642603462441,1.13953778,3147.9,3147.8,0.00111577]
[1642603462642,1.13953778,3147.9,3147.3,1.31691455]
[1642603462643,0.79447,3148.0,3147.4,0.00338946]
[1642603462843,0.3,3147.9,3147.4,0.00338946]
[1642603463243,0.7944851,3147.9,3147.4,0.00338946]
[1642603463442,0.79449,3147.8,3147.2,0.00452631]
[1642603463646,0.3,3147.8,3147.2,0.00452631]
[1642603463846,1.09449,3147.8,3147.2,0.00452631]
[1642603464044,0.79449,3147.8,3147.2,0.00452631]
[1642603464245,0.00115792,3148.2,3147.2,0.15889]
[1642603464449,0.00115792,3148.2,3147.3,0.79431]
[1642603464644,0.00115792,3148.2,3147.4,4.0565383]
[1642603464844,0.00115792,3148.2,3147.5,0.381]
[1642603465045,0.00115792,3148.2,3147.6,3.55732777]
[1642603465244,0.00115792,3148.2,3147.6,3.55958039]
[1642603465489,0.00115792,3148.2,3147.7,1.44811066]
[1642603465691,0.00115792,3148.2,3147.8,3.57746834]
[1642603465889,0.00115792,3148.2,3147.8,3.69791577]
[1642603466092,0.00115792,3148.2,3147.8,6.84885566]
[1642603466496,1.58974822,3148.2,3147.8,3.69791577]
[1642603466694,1.58974822,3148.2,3147.8,0.00111577]
[1642603466895,2.68411822,3148.2,3147.7,3.8078]
[1642603467097,2.68411822,3148.2,3147.3,0.15889]
[1642603467098,0.00170527,3148.1,3147.3,0.15889]
[1642603467294,0.00170527,3148.1,3147.4,2.70361356]
[1642603467494,0.00113685,3148.0,3147.4,2.70588725]
[1642603467695,2.70675367,3148.0,3147.4,2.70588725]
[1642603467894,2.70566682,3148.0,3147.4,0.00227369]
[1642603468098,0.3,3147.9,3147.4,0.00227369]
[1642603468497,1.41686632,3148.0,3146.8,0.0007263]
[1642603468498,1.71686632,3148.0,3147.2,0.00341054]
[1642603468798,1.71686632,3148.0,3146.9,2.70916098]
[1642603468997,1.71686632,3148.0,3146.9,0.00511581]
[1642603468998,2.3835914,3147.8,3146.9,0.00511581]
[1642603469266,0.3,3147.7,3147.0,0.00454739]
[1642603469457,0.3,3147.7,3147.0,3.0581702]
[1642603469659,0.3,3147.7,3147.1,3.24780598]
[1642603469857,0.00341054,3148.4,3147.2,2.70393702]
[1642603470058,0.00341054,3148.4,3147.3,3.44754494]
[1642603470259,0.79709072,3148.3,3147.3,3.60927706]
[1642603470658,1.09914393,3148.0,3147.3,3.45038706]
[1642603470862,1.09914393,3148.0,3147.3,0.00284212]
[1642603471061,1.39914393,3148.0,3147.3,0.00284212]
[1642603471361,1.39914393,3148.0,3146.9,0.00511581]
[1642603471362,3.17824,3147.8,3146.9,0.00511581]
[1642603471565,2.18912,3147.8,3146.9,0.00511581]
[1642603472167,1.54227811,3147.4,3146.9,0.00511581]
[1642603472365,2.3840113,3147.3,3146.9,0.00511581]
[1642603472566,0.3,3147.2,3146.9,0.00511581]
[1642603473409,1.37815706,3147.1,3146.9,0.00511581]
[1642603473598,5.9,3147.0,3146.8,0.0007263]
[1642603473800,0.3,3147.0,3146.8,0.0007263]
[1642603474118,0.3,3147.1,3146.8,0.0007263]
[1642603474299,2.38452,3147.4,3146.8,0.0007263]
[1642603474300,0.7945371,3147.2,3146.8,0.0007263]
[1642603474502,6.3027,3148.1,3146.8,0.0007263]
[1642603474503,1.5888925,3147.9,3146.8,0.0007263]
[1642603474704,0.00113685,3147.1,3146.9,0.53989]
[1642603474903,0.00511581,3147.8,3147.1,1.10760646]
[1642603475100,0.00682108,3148.1,3147.3,0.0378708]
[1642603475302,0.2378,3149.3,3147.9,0.0123354]
[1642603475303,0.7940705,3149.0,3147.9,0.0123354]
[1642603475504,0.7940705,3149.0,3148.0,0.53989]
[1642603475698,0.2378,3149.3,3148.1,3.44754494]
[1642603475999,0.0073895,3149.0,3148.2,0.381]
[1642603476200,0.0073895,3149.0,3148.5,1.33770828]
[1642603476399,0.00682108,3148.9,3148.7,1.3243345]
[1642603476842,0.00625265,3148.8,3148.7,1.3243345]
[1642603477044,0.00625265,3148.8,3148.7,1.4832245]
[1642603477445,0.00625265,3148.8,3148.7,5.33767267]
[1642603477645,0.00625265,3148.8,3148.7,9.53767267]
[1642603478045,0.00625265,3148.8,3148.7,11.12544267]
[1642603478245,0.00625265,3148.8,3148.7,11.50644267]
[1642603479546,0.00625265,3148.8,3148.7,5.71867267]
[1642603480603,5.265e-05,3148.8,3148.7,12.14427267]
[1642603480802,5.265e-05,3148.8,3148.7,12.14507267]
[1642603481000,5.265e-05,3148.8,3148.7,12.14667267]
[1642603481205,5.265e-05,3148.8,3148.7,12.93584267]
[1642603481405,5.265e-05,3148.8,3148.7,12.93344267]
[1642603481602,5.265e-05,3148.8,3148.7,12.81264267]
[1642603481802,5.265e-05,3148.8,3148.7,11.48830817]
[1642603482003,5.265e-05,3148.8,3148.7,0.53989]
[1642603482408,5.265e-05,3148.8,3148.7,5.58989]
[1642603482702,5.265e-05,3148.8,3148.7,8.79325242]
[1642603483103,5.265e-05,3148.8,3148.7,10.11070572]
[1642603483302,5.265e-05,3148.8,3148.7,8.72773363]
[1642603484443,5.265e-05,3148.8,3148.7,10.20049232]
[1642603485344,5.265e-05,3148.8,3148.7,11.53621599]
[1642603485743,5.265e-05,3148.8,3148.7,5.58989]
[1642603487752,5.265e-05,3148.8,3148.7,9.62181825]
[1642603488197,5.265e-05,3148.8,3148.7,8.82784825]
[1642603488398,5.265e-05,3148.8,3148.7,10.07784825]
[1642603488700,5.265e-05,3148.8,3148.7,10.20184825]
[1642603488896,5.265e-05,3148.8,3148.7,10.20024825]
[1642603489099,5.265e-05,3148.8,3148.7,5.58989]
[1642603490102,5.265e-05,3148.8,3148.7,8.77174901]
[1642603490301,5.265e-05,3148.8,3148.7,5.58989]
[1642603490500,5.265e-05,3148.8,3148.7,8.80787889]
[1642603491841,5.265e-05,3148.8,3148.7,8.93487889]
[1642603492039,5.265e-05,3148.8,3148.7,5.71689]
[1642603492240,5.265e-05,3148.8,3148.7,5.58989]
[1642603493546,5.265e-05,3148.8,3148.7,6.86034915]
[1642603494246,5.265e-05,3148.8,3148.7,5.58989]
[1642603494648,5.265e-05,3148.8,3148.7,8.86462225]
[1642603494847,5.265e-05,3148.8,3148.7,5.58989]
[1642603496506,5.265e-05,3148.8,3148.7,8.84590466]
[1642603496708,5.265e-05,3148.8,3148.7,11.54867735]
[1642603496906,5.265e-05,3148.8,3148.7,5.58989]
[1642603497308,5.265e-05,3148.8,3148.7,6.83989]
[1642603497912,5.265e-05,3148.8,3148.7,5.58989]
[1642603499652,5.265e-05,3148.8,3148.4,0.15889]
[1642603499852,0.7941123,3148.7,3148.4,0.15889]
[1642603500048,1.0941123,3148.7,3148.5,0.00165262]
[1642603500450,1.0941123,3148.7,3148.6,1.44206495]
[1642603500650,0.3,3148.7,3148.6,1.44206495]
[1642603500848,0.3,3148.7,3148.6,1.44314914]
[1642603501049,0.30005265,3148.8,3148.6,1.60203914]
[1642603501252,5.265e-05,3148.8,3148.7,9.89590486]
[1642603501849,0.30005265,3148.8,3148.7,6.681]
[1642603502249,5.265e-05,3148.8,3148.7,6.83989]
[1642603502449,0.30005265,3148.8,3148.7,6.83989]
[1642603502648,5.265e-05,3148.8,3148.7,6.83989]
[1642603503901,5.265e-05,3148.8,3148.7,10.12078451]
[1642603504100,5.265e-05,3148.8,3148.7,6.83989]
[1642603504301,5.265e-05,3148.8,3148.7,0.381]
[1642603504802,5.265e-05,3148.8,3148.6,0.00108419]
[1642603505200,5.265e-05,3148.8,3148.4,1.44971234]
[1642603505403,5.265e-05,3148.8,3148.5,0.00165262]
[1642603506408,5.265e-05,3148.8,3148.5,0.79566262]
[1642603506654,5.265e-05,3148.8,3148.7,6.45889]
[1642603506855,5.265e-05,3148.8,3148.7,10.01189781]
[1642603507055,5.265e-05,3148.8,3148.7,11.01189781]
[1642603507356,0.7971239,3150.0,3148.7,14.15555007]
[1642603507558,0.7971239,3150.0,3149.1,0.79385]
[1642603507758,0.79388,3150.0,3149.9,1.37387167]
[1642603507956,0.79388,3150.0,3149.2,3.33680278]
[1642603507957,1.5877202,3150.0,3149.8,1.2512797]
[1642603508160,1.58377283,3150.0,3149.8,1.2512797]
[1642603509258,1.58377283,3150.0,3149.8,4.4512797]
[1642603509458,1.58377283,3150.0,3149.9,1.58056538]
[1642603509658,1.58377283,3150.0,3149.9,0.10680164]
[1642603509859,1.88377283,3150.0,3149.9,0.10680164]
[1642603510259,5.23377283,3150.0,3149.9,0.10680164]
[1642603511899,4.45075374,3150.0,3149.9,0.10680164]
[1642603512099,4.45075374,3150.0,3149.9,3.17143552]
[1642603512100,1.10075374,3150.0,3149.9,3.17143552]
[1642603512304,1.10075374,3150.0,3149.9,0.26569164]
[1642603512305,0.00687374,3150.0,3149.9,0.26569164]
[1642603512500,0.00687374,3150.0,3149.9,0.10680164]
[1642603513206,0.00687374,3150.0,3149.9,1.25988314]
[1642603513601,0.00687374,3150.0,3149.9,4.30528594]
[1642603513810,0.00687374,3150.0,3149.9,4.46417594]
[1642603514002,0.00687374,3150.0,3149.9,4.84517594]
[1642603514247,0.00687374,3150.0,3149.9,11.14517594]
[1642603514448,0.00687374,3150.0,3149.9,8.89341314]
[1642603516656,0.00687374,3150.0,3149.9,8.22667314]
[1642603517465,0.00687374,3150.0,3149.9,12.06317314]
[1642603518097,0.00687374,3150.0,3149.9,12.85684314]
[1642603518696,0.00687374,3150.0,3149.9,9.02034314]
[1642603519095,0.00687374,3150.0,3149.9,11.72241347]
[1642603519299,0.00687374,3150.0,3149.9,9.02034314]
[1642603519500,0.00687374,3150.0,3149.9,1.92667314]
[1642603519899,0.00687374,3150.0,3149.9,0.77359164]
[1642603520108,2.45687374,3150.0,3149.9,0.10680164]
[1642603520303,0.30687374,3150.0,3149.9,0.10680164]
[1642603522061,5.00687374,3150.0,3149.9,0.10680164]
[1642603522761,0.30687374,3150.0,3149.9,0.10680164]
[1642603527096,2.85687374,3150.0,3149.9,0.10680164]
[1642603527298,2.8167707,3150.0,3149.9,0.10680164]
[1642603527697,2.8167707,3150.0,3149.8,3.2]
[1642603527698,4.40482,3150.0,3149.8,3.2]
[1642603527899,5.99284,3150.0,3149.8,3.2]
[1642603528096,0.00630531,3149.9,3149.8,3.2]
[1642603529007,0.00630531,3149.9,3148.8,0.1269]
[1642603529008,0.79413,3149.7,3148.8,0.1269]
[1642603529280,7.39408,3149.8,3148.8,0.1269]
[1642603529281,1.58844,3149.5,3148.8,0.1269]
[1642603529673,0.3034632,3149.4,3148.8,0.1269]
[1642603529872,0.6034632,3149.4,3148.9,1.55383318]
[1642603530073,0.00289477,3149.3,3148.9,1.55383318]
[1642603530477,0.00232635,3149.2,3148.8,0.1269]
[1642603530878,0.79422,3149.3,3148.8,0.1269]
[1642603530879,0.00175792,3149.1,3148.8,0.1269]
[1642603531074,6.3,3149.0,3148.6,0.00108419]
[1642603531279,7.0955095,3149.0,3148.6,0.00108419]
[1642603531475,8.489822,3149.0,3148.6,1.49581112]
[1642603531677,8.489822,3149.0,3148.2,1.32463725]
[1642603532077,1.58863,3148.9,3148.3,0.00278946]
[1642603532275,12.43321217,3148.9,3147.9,2.70354494]
[1642603532475,12.43321217,3148.9,3147.9,0.0022737]
[1642603532476,3.1773969,3148.7,3147.9,0.0022737]
[1642603532678,5.55036374,3148.6,3147.9,0.0022737]
[1642603532897,0.4269,3148.5,3147.8,1.31964982]
[1642603533101,0.60113684,3148.5,3147.8,1.31964982]
[1642603533499,0.794439,3148.4,3147.8,1.31964982]
[1642603533700,0.794439,3148.4,3147.6,0.00397897]
[1642603533701,4.75178404,3148.4,3147.6,0.00397897]
[1642603533905,0.3,3148.3,3147.6,0.00397897]
[1642603534104,0.1269,3148.2,3147.2,0.00625266]
[1642603534302,4.99160901,3148.2,3147.2,0.00625266]
[1642603534502,5.29160901,3148.2,3147.2,0.00625266]
[1642603534701,0.79466,3147.9,3147.3,1.1619725]
[1642603534903,1.58927,3147.7,3147.3,1.1619725]
[1642603535101,0.1269,3147.6,3147.4,0.00511581]
[1642603535704,0.1269,3147.6,3146.9,1.21216107]
[1642603535705,6.3,3147.5,3146.7,0.9424]
[1642603535906,2.6843872,3147.4,3147.2,0.00113685]
[1642603536304,0.3,3147.4,3147.2,0.00113685]
[1642603536653,0.00113684,3148.5,3147.3,0.15889]
[1642603536851,0.00113684,3148.5,3147.4,0.01231225]
[1642603537053,0.00568423,3148.4,3147.5,1.9505635]
[1642603537251,0.00568423,3148.4,3147.6,3.46227038]
[1642603537450,0.00511581,3148.3,3147.7,0.457]
[1642603537649,0.00511581,3148.3,3147.8,3.46227038]
[1642603537851,0.00454738,3148.2,3147.9,0.457]
[1642603538051,0.00454738,3148.2,3148.1,6.45889]
[1642603538354,0.127155,3148.6,3148.2,0.04463769]
[1642603538551,0.127155,3148.6,3148.3,0.61589]
[1642603538753,0.00625265,3148.5,3148.4,3.22226301]
[1642603538950,0.00625265,3148.5,3148.4,3.5590958]
[1642603539163,0.00625265,3148.5,3148.4,0.457]
[1642603540397,0.00625265,3148.5,3148.0,1.52494751]
[1642603540600,0.80065265,3148.5,3148.0,1.52494751]
[1642603540800,0.80006423,3148.4,3148.0,1.52494751]
[1642603541001,0.80006423,3148.4,3147.7,0.457]
[1642603541202,0.30511581,3148.3,3147.5,1.15952753]
[1642603541407,0.79445,3148.1,3147.5,1.15952753]
[1642603541602,4.2727545,3148.0,3147.2,0.00113685]
[1642603541806,3.48163504,3148.0,3147.2,0.00113685]
[1642603542002,0.30284211,3147.9,3147.2,0.00113685]
[1642603542202,0.9215225,3147.8,3147.2,0.00113685]
[1642603542403,2.18925,3147.7,3147.2,0.00113685]
[1642603542602,0.79468,3147.5,3147.2,0.00113685]
[1642603542802,1.09467,3147.4,3147.2,0.00113685]
[1642603543302,1.09467,3147.4,3147.2,1.4211311]
[1642603543501,1.88929,3147.4,3147.2,1.4211311]
[1642603543701,0.3,3147.3,3147.2,1.4211311]
[1642603544156,0.3,3147.3,3147.2,0.00113685]
[1642603544362,0.3,3147.3,3146.2,0.00089557]
[1642603544557,0.79497,3147.1,3146.2,0.00089557]
[1642603544753,5.55,3146.9,3146.2,0.00089557]
[1642603544956,7.1399473,3146.9,3146.2,0.00089557]
[1642603545154,0.1269,3146.8,3146.3,0.00341054]
[1642603545354,3.85,3146.7,3145.9,3.46227038]
[1642603545558,3.1797,3146.5,3145.8,1.19521796]
[1642603545855,1.5898522,3146.4,3146.0,0.00170527]
[1642603546054,0.3,3146.3,3146.0,0.00170527]
[1642603546254,2.1898661,3146.3,3146.0,0.00170527]
[1642603546455,2.1898661,3146.3,3146.1,1.31759081]
[1642603546456,1.8898661,3146.3,3146.1,1.31759081]
[1642603546655,0.3,3146.3,3146.1,1.31759081]
[1642603547054,0.30170527,3146.6,3146.1,1.31759081]
[1642603547255,1.89113627,3146.6,3146.1,1.31759081]
[1642603547454,0.00113684,3146.5,3146.1,1.31759081]
[1642603547655,0.30113684,3146.5,3146.3,1.31968541]
[1642603547899,0.60113684,3146.5,3146.1,1.31759081]
[1642603548105,1.5896357,3146.4,3146.1,1.31759081]
[1642603548303,1.5896357,3146.4,3146.0,0.00170527]
[1642603548507,1.52169,3146.3,3145.4,3.45989346]
[1642603548705,0.79496,3146.0,3145.4,0.00511581]
[1642603548904,1.09496,3146.0,3145.6,1.4660825]
[1642603549104,0.4269,3145.9,3145.6,1.4660825]
[1642603549305,0.3,3145.9,3145.7,0.00170527]
[1642603549507,1.09496,3146.0,3145.7,0.00170527]
[1642603549704,0.3,3146.0,3145.7,0.00170527]
[1642603550104,0.79593684,3146.2,3145.7,0.00170527]
[1642603550304,0.3,3146.1,3145.7,0.00170527]
[1642603550708,0.1269,3146.8,3146.2,0.79364316]
[1642603550909,0.1269,3147.0,3146.3,0.83403875]
[1642603551507,0.1269,3147.1,3146.3,0.03929875]
[1642603551748,0.00284212,3146.9,3146.5,1.40668719]
[1642603552154,0.1291737,3146.8,3146.5,1.40668719]
[1642603552451,0.00170527,3146.7,3146.6,1.2193777]
[1642603552849,0.00397897,3146.7,3146.6,1.2193777]
[1642603553656,3.05397897,3146.7,3146.6,1.2193777]
[1642603553854,3.18087897,3146.7,3146.6,1.2193777]
[1642603554055,0.13087897,3146.7,3146.6,1.2193777]
[1642603554361,0.00397897,3146.7,3146.6,1.2193777]
[1642603554760,0.74864897,3147.5,3146.6,1.2193777]
[1642603554956,0.74864897,3147.5,3147.1,1.11029833]
[1642603555258,0.1269,3147.4,3147.1,1.11029833]
[1642603555503,0.1269,3147.4,3146.7,0.0022737]
[1642603555706,0.00113684,3147.3,3146.7,0.0022737]
[1642603555903,0.00113684,3147.3,3146.6,0.00284212]
[1642603555904,0.1269,3147.2,3146.6,0.00284212]
[1642603556104,0.1269,3147.2,3145.9,0.00682109]
[1642603556505,0.1269,3147.2,3146.3,1.28270895]
[1642603556704,0.92163,3147.2,3146.3,1.28270895]
[1642603556907,0.92163,3147.2,3146.4,0.00397897]
[1642603557906,0.92163,3147.2,3146.5,0.7948463]
[1642603558304,0.92163,3147.2,3146.6,0.00284212]
[1642603558508,0.1269,3147.2,3146.6,1.59217392]
[1642603558706,0.00113684,3147.3,3146.6,1.59217392]
[1642603558707,0.79585684,3147.3,3146.7,1.17638627]
[1642603558907,0.79585684,3147.3,3146.7,1.17865997]
[1642603559148,0.79585684,3147.3,3146.9,2.26847822]
[1642603561053,0.79585684,3147.3,3146.9,1.47372442]
[1642603561449,1.58978,3147.1,3146.8,0.00170527]
[1642603562255,0.79486,3147.2,3146.8,1.59122507]
[1642603562462,0.00113684,3147.3,3146.9,1.23727599]
[1642603562655,1.58929,3147.8,3146.9,1.23841284]
[1642603562902,1.58929,3147.8,3147.0,0.00170527]
[1642603563105,0.00113685,3147.5,3147.0,3.10432231]
[1642603563506,0.00284212,3147.8,3147.1,0.45813684]
[1642603563708,0.00284212,3147.8,3147.2,5.47047043]
[1642603563909,1.0,3149.0,3147.3,0.457]
[1642603563910,0.0022737,3147.7,3147.3,0.457]
[1642603564207,1.0,3149.0,3147.3,0.457]
[1642603564208,0.00682108,3148.5,3148.3,1.55760366]
[1642603564608,0.00397896,3148.4,3148.3,0.7943608]
[1642603565008,0.00397896,3148.4,3148.3,2.22940444]
[1642603565009,0.00682108,3148.4,3148.3,2.22940444]
[1642603565404,0.00682108,3148.4,3148.3,1.43504364]
[1642603565606,2.75682108,3148.4,3148.3,1.43504364]
[1642603565806,2.75682108,3148.4,3148.0,0.7944607]
[1642603566207,0.00341054,3148.3,3148.0,0.7944607]
[1642603566410,0.79785054,3148.3,3148.0,0.7944607]
[1642603566666,0.00284211,3148.2,3148.0,0.7944607]
[1642603566856,0.00284211,3148.2,3148.1,7.45396664]
[1642603567161,0.1269,3148.9,3148.1,7.45396664]
[1642603567162,0.1269,3149.7,3148.3,0.7942143]
[1642603567358,1.2025,3149.9,3148.4,3.67259868]
[1642603567562,1.2025,3149.9,3148.6,6.05]
[1642603567857,1.2025,3149.9,3148.8,1.36729657]
[1642603568054,4.913,3150.4,3149.0,6.3]
[1642603568055,0.1269,3150.0,3149.0,6.3]
[1642603568258,5.77711768,3151.0,3149.0,6.3]
[1642603568259,0.1269,3150.6,3149.4,0.7939063]
[1642603568456,2.38239114,3151.1,3149.4,0.7939063]
[1642603568457,0.00568424,3149.8,3149.5,4.28520716]
[1642603568659,0.00568424,3149.8,3149.7,1.5877918]
[1642603568853,0.1269,3151.0,3149.7,1.5877918]
[1642603569058,1.09773477,3150.9,3150.2,1.15724192]
[1642603569256,0.1269,3150.8,3149.8,3.23299727]
[1642603569456,0.1269,3150.8,3149.7,1.5877918]
[1642603569656,0.79393,3150.4,3149.7,1.5877918]
[1642603569856,0.79393,3150.4,3150.1,0.7939209]
[1642603570060,0.00852636,3150.3,3150.1,0.7939209]
[1642603570499,0.00795793,3150.2,3150.1,0.7939209]
[1642603571503,0.1269,3150.6,3150.2,5.2]
[1642603571803,0.1269,3151.1,3150.5,0.7936469]
[1642603572004,0.1269,3151.6,3150.6,0.06356308]
[1642603572205,2.38239114,3152.0,3150.7,5.8]
[1642603572402,0.0022737,3151.5,3150.8,3.42742928]
[1642603572611,0.0022737,3151.5,3150.9,0.457]
[1642603572907,5.58360642,3152.6,3150.9,0.457]
[1642603572908,0.00170527,3151.4,3151.1,0.7935217]
[1642603573106,0.00170527,3151.4,3151.2,5.13115157]
[1642603573308,2.38239114,3152.8,3152.5,1.2357769]
[1642603573509,2.38239114,3153.0,3152.5,0.94611335]
[1642603573706,3.16220642,3153.2,3152.5,0.94611335]
[1642603573707,0.00738951,3152.7,3152.5,0.94611335]
[1642603573906,0.00738951,3152.7,3152.5,1.73932435]
[1642603574181,2.38239114,3153.7,3152.6,8.79331928]
[1642603574369,2.38239114,3154.0,3153.4,1.10598185]
[1642603574667,0.0096632,3153.1,3152.8,0.15889]
[1642603575065,0.00909478,3153.0,3152.9,0.13819997]
[1642603575271,2.38239114,3154.3,3153.1,2.3786458]
[1642603575469,3.16220642,3154.6,3153.4,0.01251175]
[1642603575470,2.38239114,3154.5,3153.4,0.01251175]
[1642603575669,3.16220642,3154.6,3153.4,0.15858]
[1642603575670,0.00682108,3154.2,3153.4,0.15858]
[1642603575873,0.03201,3155.0,3153.6,6.3]
[1642603575874,2.38239114,3155.0,3153.6,6.3]
[1642603576073,3.59433972,3155.2,3153.9,0.7926871]
[1642603576074,0.16691044,3155.2,3153.9,0.7926871]
[1642603576274,0.00126554,3155.2,3154.1,6.1]
[1642603576473,0.00126554,3155.2,3154.2,3.88442928]
[1642603576670,0.00341054,3155.1,3154.3,3.88442928]
[1642603576872,2.38239114,3155.6,3154.5,4.75]
[1642603577071,2.38239114,3155.6,3154.8,2.3774591]
[1642603577272,0.032,3156.2,3154.9,4.67685928]
[1642603577273,0.0022737,3155.5,3154.9,4.67685928]
[1642603577475,0.032,3156.6,3155.1,8.677172]
[1642603577673,1.18469377,3157.3,3155.3,6.3]
[1642603577907,3.42742928,3157.3,3156.9,1.44356024]
[1642603578112,3.42742928,3157.3,3155.9,1.14049504]
[1642603578113,0.22216087,3156.0,3155.9,1.14049504]
[1642603578522,0.00738951,3157.2,3156.0,3.25]
[1642603578709,2.86056956,3158.6,3156.6,5.716]
[1642603578912,2.86056956,3158.6,3156.7,4.2082121]
[1642603579208,0.00284211,3157.7,3156.8,0.04843007]
[1642603579405,0.00284211,3157.7,3157.2,0.7918481]
[1642603579605,0.00227369,3157.6,3157.3,0.457]
[1642603579808,2.4005015,3158.6,3156.9,0.00170528]
[1642603579809,2.35277519,3158.6,3156.9,0.00170528]
[1642603580010,3.42742928,3158.5,3156.9,0.00170528]
[1642603580211,3.42742928,3158.5,3156.8,0.00454739]
[1642603580212,3.92406601,3158.5,3156.8,0.00454739]
[1642603580410,3.42742928,3158.4,3157.0,0.00341054]
[1642603580605,3.42742928,3158.4,3155.9,0.62672093]
[1642603580606,2.6905967,3157.5,3156.7,1.52029307]
[1642603580805,2.6905967,3157.5,3156.4,0.7922158]
[1642603581007,2.6905967,3157.5,3156.8,0.00454739]
[1642603581205,2.6905967,3157.5,3155.9,0.59519997]
[1642603581206,1.0,3157.9,3156.5,0.00625266]
[1642603581409,3.42742928,3157.8,3156.0,0.00909478]
[1642603581655,1.0,3157.7,3156.0,0.00909478]
[1642603581858,0.79241,3157.3,3156.0,0.00909478]
[1642603582355,0.3,3157.2,3156.0,0.00909478]
[1642603582557,1.0,3157.5,3156.0,0.00909478]
[1642603582960,0.3,3157.5,3156.0,0.80142398]
[1642603583158,1.58482,3157.6,3156.0,0.80142398]
[1642603583159,0.79239,3157.4,3156.0,0.80142398]
[1642603583357,0.79239,3157.4,3156.1,0.00852635]
[1642603583558,1.27804956,3157.1,3156.1,0.00852635]
[1642603583760,3.42742928,3157.0,3156.1,0.00852635]
[1642603583964,1.0,3156.9,3155.5,0.01193689]
[1642603584164,1.0,3156.9,3155.2,0.01364216]
[1642603584165,0.457,3156.8,3155.2,0.01364216]
[1642603584462,0.457,3156.8,3154.7,1.48156346]
[1642603584463,1.10784534,3155.3,3154.7,1.48156346]
[1642603584663,1.10784534,3155.3,3154.7,0.01648428]
[1642603584862,1.10784534,3155.3,3154.2,0.01279915]
[1642603584863,1.10784534,3155.3,3154.8,0.01591586]
[1642603585065,1.70784534,3155.3,3154.3,0.01875798]
[1642603585810,1.70784534,3155.3,3153.4,5.67644996]
[1642603585811,0.79302,3154.8,3153.6,1.32441848]
[1642603586113,2.58589,3155.5,3153.6,1.32441848]
[1642603586114,4.84254362,3156.0,3154.3,0.01219829]
[1642603586312,4.38554362,3156.4,3154.3,0.46919829]
[1642603586510,3.38554362,3156.3,3155.0,0.01271191]
[1642603586708,1.6,3156.4,3155.0,0.01271191]
[1642603586911,1.17531127,3155.9,3155.3,1.51760992]
[1642603587110,1.17531127,3155.9,3155.1,1.29865432]
[1642603587111,1.17531127,3155.9,3155.1,0.01421059]
[1642603587311,1.17531127,3155.9,3155.4,0.01250532]
[1642603587510,1.17531127,3155.9,3154.3,0.01287713]
[1642603587511,1.17531127,3155.9,3155.1,0.01421059]
[1642603587709,1.17531127,3155.9,3154.4,0.01818955]
[1642603588116,1.19284427,3155.2,3154.6,1.49107531]
[1642603588314,1.19284427,3155.2,3154.4,0.01818955]
[1642603588516,1.19284427,3155.2,3154.7,0.01648428]
[1642603588717,0.79279,3155.8,3154.4,0.81089635]
[1642603588917,0.79279,3155.8,3154.5,0.01762113]
[1642603589348,0.74279,3155.8,3154.5,0.01762113]
[1642603589749,1.50067364,3155.7,3155.1,1.19956098]
[1642603590149,1.50067364,3155.7,3155.2,0.01364216]
[1642603590354,0.79268,3156.2,3155.2,0.01364216]
[1642603590561,0.3,3156.2,3155.2,0.01364216]
[1642603590953,0.3,3156.4,3155.2,0.01364216]
[1642603591156,0.6,3156.4,3155.2,0.01364216]
[1642603591354,0.38,3156.6,3155.2,0.01364216]
[1642603591553,0.7927,3156.1,3154.7,0.01648428]
[1642603591755,0.7927,3156.1,3154.5,0.01762113]
[1642603591756,1.0927,3156.1,3154.5,0.01762113]
[1642603591953,1.3927,3156.1,3154.5,0.01762113]
[1642603592352,1.28650862,3155.5,3155.1,1.1375702]
[1642603592753,1.28650862,3155.5,3155.2,0.01364216]
[1642603593204,1.28650862,3155.5,3154.2,1.5854462]
[1642603593205,1.28650862,3155.5,3154.5,0.01762113]
[1642603593612,1.88650862,3155.5,3154.5,2.113e-05]
[1642603593808,2.67957862,3155.5,3154.5,2.113e-05]
[1642603594011,0.00509468,3155.4,3154.5,2.113e-05]
[1642603594210,0.79291,3155.2,3154.5,2.113e-05]
[1642603594407,1.17291,3155.2,3154.5,2.113e-05]
[1642603594608,0.00338941,3155.1,3154.5,2.113e-05]
[1642603594809,1.43036162,3155.1,3154.5,2.113e-05]
[1642603595009,0.00282099,3155.0,3154.5,2.113e-05]
[1642603595212,6.3,3154.8,3153.3,1.14487358]
[1642603595410,1.5,3154.6,3154.4,1.8901]
[1642603595609,3.78878388,3154.5,3153.2,0.01200128]
[1642603595812,3.78878388,3154.5,3153.0,0.27639994]
[1642603595813,0.79319,3154.2,3153.0,0.27639994]
[1642603596015,0.79319,3154.2,3153.3,0.00682108]
[1642603596016,4.58927618,3154.1,3153.3,0.00682108]
[1642603596209,1.10969684,3154.0,3153.3,0.00682108]
[1642603596409,1.5,3153.7,3153.3,0.00682108]
[1642603596669,1.5,3153.7,3153.1,1.44809136]
[1642603596670,1.5,3153.7,3153.2,0.0073895]
[1642603597062,1.36714895,3153.8,3153.2,0.0073895]